Cogmind - Beta 14 @@@ ROGUE MODE // 2024.08.27 @ 19:10:53 Player: OctagonalPrism Result: Self-destructed Performance ------------- Evolutions (5) 2500 Regions Visited (4) 800 Robots Destroyed (9) 45 Value Destroyed (211) 211 Prototype IDs (8) 160 Alien Tech Used (0) 0 Bonus (0) 0 TOTAL SCORE: 3716 Bonus ------- None Cogmind --------- Core Integrity 375/1000 Matter 1/300 Energy 83/100 System Corruption 17% Temperature Cool (0) Movement Flying (115) Ox1 Location -5/Factory Parts ------- > --- POWER (2) -------- (None) > --- PROPULSION (4) --- VTOL Module > --- UTILITY (9) ------ Triangulator Advanced Sensor Array Advanced Signal Interpreter > --- WEAPON (2) ------- Autogun > --- INVENTORY (5) ---- Neutrino Core Structural Scanner Improved Terrain Scan Processor Mass Driver Peak State ------------ > --- POWER ------------ Light Nuclear Core > --- PROPULSION ------- Nuclear Pulse Array Nuclear Pulse Array > --- UTILITY ---------- Triangulator Advanced Sensor Array Advanced Signal Interpreter > --- WEAPON ----------- Mass Driver > --- INVENTORY -------- Field Propulsion Drive Structural Scanner Improved Terrain Scan Processor [Rating: 49] Favorites ----------- Power Micro Nuclear Core Engine Ion Engine Power Core Micro Nuclear Core Propulsion Light Treads Treads Light Treads Leg Light Armored Exoskeleton Flight Unit Nuclear Pulse Array Utility Structural Scanner Device Structural Scanner Storage Large Storage Unit Processor Improved Melee Analysis Suite Hackware Authchip [Propulsion] Weapon Mining Claw Energy Gun Arc Projector Ballistic Gun Light Assault Rifle Ballistic Cannon Mass Driver Launcher Grenade Launcher Slashing Weapon Mining Claw Build | -11 -10 -10 -7 -5 ------- Run | Yrd Mat Sub Rec Fac Slots Evolved 10 | . . . . 10 Power 1 | . . . . 1 Propulsion 2 | . . . . 2 Utility 7 | . . . . 7 Weapon . | . . . . . Parts Attached 37 | 6 5 . 7 19 Power 7 | 1 . . 2 4 Engine 1 | 1 . . . . Core 6 | . . . 2 4 Reactor . | . . . . . Propulsion 10 | 2 . . 2 6 Treads 2 | 2 . . . . Leg 2 | . . . 2 . Wheel . | . . . . . Hover . | . . . . . Flight 6 | . . . . 6 Utility 9 | 1 2 . 2 4 Device 4 | . 1 . 1 2 Storage 2 | 1 1 . . . Processor 2 | . . . . 2 Hackware 1 | . . . 1 . Protection . | . . . . . Artifact . | . . . . . Weapon 11 | 2 3 . 1 5 Energy Gun 4 | 2 . . 1 1 Energy Cannon . | . . . . . Ballistic Gun 4 | . 2 . . 2 Ballistic Cannon 1 | . . . . 1 Launcher 1 | . . . . 1 Special Weapon . | . . . . . Impact Weapon . | . . . . . Slashing Weapon 1 | . 1 . . . Piercing Weapon . | . . . . . Special Melee Weapon . | . . . . . Unidentified Prototypes 1 | . . . . 1 Corrupted Parts 1 | . . . 1 . System Corruption 2 | . . . 2 . Parts Lost 17 | . 1 . . 16 Power 3 | . . . . 3 Propulsion 5 | . . . . 5 Utility 3 | . . . . 3 Weapon 6 | . 1 . . 5 Highest Loss Streak 16 | . 1 . . 16 To Critical Strikes . | . . . . . Average Slot Usage (%) 77 | . 97 100 95 37 Engine 4 | . 14 14 . . Core 6 | . . . 13 5 Treads 17 | . 28 28 23 . Leg 1 | . . . 1 3 Device 10 | . 11 14 13 5 Storage 8 | . 14 14 12 . Processor 1 | . . . . 4 Hackware 1 | . . . . 3 Energy Gun 9 | . 14 . 11 3 Ballistic Gun 5 | . 12 14 2 . Slashing Weapon 7 | . . 14 14 3 Peak Build Rating 49 | 6 7 7 22 49 Average Rating 15 | 4 6 7 14 28 On Entrance 8 | . 6 7 7 22 Naked Turns . | . . . . . Heaviest Build 33 | 14 30 29 33 26 Greatest Support 40 | 40 40 40 40 30 Greatest Overweight (x) 4 | . . . 3 4 Average Overweight (x) . | . . . . . Largest Inventory Capacity 15 | 8 15 15 15 5 Average Capacity 11 | 6 14 15 13 5 Most Carried 10 | 1 5 5 10 5 Average Carried 4 | . 3 5 6 3 Final Capacity 15 | 8 15 15 5 5 Final Carried 5 | 1 5 5 4 4 Class Distribution -------------------- 100% | Mutant Dominant Class ---------------- Mutant | -10/Materials Mutant | -10/Subcaves Mutant | -7/Recycling Mutant | -5/Factory Resources | -11 -10 -10 -7 -5 ----------- Run | Yrd Mat Sub Rec Fac Matter Collected 349 | 208 92 15 . 34 Remotely . | . . . . . Salvage Created 139 | . 73 . . 66 Parts 17 | . 12 . . 5 Haulers Intercepted . | . . . . . Recyclers Shooed . | . . . . . Parts Field Recycled . | . . . . . Retrieved Matter . | . . . . . Parts Self-Destructed 2 | . . 2 . . Prevented . | . . . . . Kills | -11 -10 -10 -7 -5 ------- Run | Yrd Mat Sub Rec Fac Combat Hostiles Destroyed 9 | . 5 . . 4 Guns 7 | . 5 . . 2 Cannons 2 | . . . . 2 Classes Destroyed 2 | . 1 . . 1 Swarmer 8 | . 5 . . 3 Programmer 1 | . . . . 1 Best Kill Streak 3 | . 3 . . 2 Combat Bots Only 3 | . 3 . . 2 Max Kills in Single Turn 1 | . 1 . . 1 Gunslinging . | . . . . . Exploded . | . . . . . Melee . | . . . . . Uniques/NPCs Destroyed . | . . . . . Combat | -11 -10 -10 -7 -5 -------- Run | Yrd Mat Sub Rec Fac Hostile Shots Fired 282 | . 20 54 . 208 Missed 108 | . 6 23 . 79 Damage Taken 2726 | . 112 239 . 2375 Core 666 | . 7 34 . 625 Absorbed by Shields . | . . . . . Core Remaining (%) 91 | 100 . . 83 . Volleys Fired 41 | . 16 . . 25 Largest 2 | . 2 . . 2 Hottest 90 | . 90 . . 85 Shots Fired 56 | . 29 . . 27 Gun 47 | . 29 . . 18 Cannon 5 | . . . . 5 Launcher 4 | . . . . 4 Special . | . . . . . Kinetic 29 | . 13 . . 16 Thermal 9 | . 4 . . 5 Explosive 4 | . . . . 4 Electromagnetic 14 | . 12 . . 2 Robot Hit Streak 7 | . 3 . . 7 Robot Miss Streak 6 | . 6 . . 3 Penetration Max . | . . . . . Secondary Targets 1 | . 1 . . . Max Gunslinging Chain 1 | . 1 . . . Shots Hit Robots 33 | . 13 . . 20 Core Hits 18 | . 5 . . 13 Critical Kills . | . . . . . Critical Parts Destroyed . | . . . . . Critical Strikes 1 | . . . . 1 Blast 1 | . . . . 1 Melee Attacks 5 | . 1 . . 4 Impact . | . . . . . Slashing 5 | . 1 . . 4 Piercing . | . . . . . Sneak Attacks . | . . . . . Combat Hostiles . | . . . . . Follow-up Attacks . | . . . . . Damage Inflicted 766 | . 168 . . 598 Guns 341 | . 168 . . 173 Cannons 186 | . . . . 186 Explosions 213 | . . . . 213 Melee 26 | . . . . 26 Ramming . | . . . . . Kinetic 333 | . 56 . . 277 Thermal 93 | . 13 . . 80 Explosive 213 | . . . . 213 Electromagnetic 101 | . 99 . . 2 Impact . | . . . . . Slashing 26 | . . . . 26 Piercing . | . . . . . Highest Corruption 17 | . . . 2 17 Average Corruption 11 | . . . 2 11 Corruption Purged . | . . . . . Corruption Blocked . | . . . . . Effects 10 | . . . . 10 Message Errors 1 | . . . . 1 Matter Fused 2 | . . . . 2 Heat Flow Errors 2 | . . . . 2 Energy Discharges 1 | . . . . 1 Data Loss (major) 1 | . . . . 1 Misfires 1 | . . . . 1 Misdirections 2 | . . . . 2 Overload Shots . | . . . . . Overflow Damage 8 | . . . . 8 Projectiles 8 | . . . . 8 Explosions . | . . . . . Melee . | . . . . . Knockbacks 2 | . . . . 2 Impact . | . . . . . Kinetic 2 | . . . . 2 Secondary . | . . . . . Self-Inflicted Damage . | . . . . . Shots . | . . . . . Rammed . | . . . . . Targets Rammed . | . . . . . Kicked . | . . . . . Crushed . | . . . . . Highest Temperature 271 | . 120 . . 271 Average Temperature 78 | . 61 . . 87 Received Heat Transfer 96 | . . 84 . 12 Siege Activations . | . . . . . Robots Corrupted . | . . . . . Combat Hostiles . | . . . . . Parts Fried . | . . . . . Impact Corruptions . | . . . . . Robots Melted . | . . . . . Combat Hostiles . | . . . . . Parts Melted . | . . . . . Heat Transferred 212 | . 37 . . 175 Parts Sabotaged . | . . . . . Parts Stolen . | . . . . . Parts Stripped . | . . . . . Power Chain Reactions . | . . . . . Alert | -11 -10 -10 -7 -5 ------- Run | Yrd Mat Sub Rec Fac Peak Influence 340 | . 175 . 84 340 Initial 300 | . . . 43 300 Average 134 | . 93 . 43 299 Maximum Alert Level 1 | . . . . 1 Low Security (%) 69 | 100 100 . 100 1 Level 1 30 | . . . . 98 Level 2 . | . . . . . Level 3 . | . . . . . Level 4 . | . . . . . Level 5 . | . . . . . High Security . | . . . . . Max Security . | . . . . . Squads Dispatched 4 | . . . . 4 Investigation . | . . . . . Extermination 1 | . . . . 1 Reinforcement 3 | . . . . 3 Assault . | . . . . . Garrison . | . . . . . Intercept . | . . . . . Searches Triggered . | . . . . . Construction Impeded . | . . . . . Haulers Reinforced . | . . . . . Active Scanning Responses . | . . . . . Cargo Convoy Interrupts . | . . . . . Stealth | -11 -10 -10 -7 -5 --------- Run | Yrd Mat Sub Rec Fac Distress Signals 1 | . . . . 1 Communications Jammed . | . . . . . Distress Signals . | . . . . . Times Spotted 38 | . 9 6 . 23 Peak Tracking Total 12 | . 3 6 . 12 Tactical Retreats 6 | . 1 . . 5 Traps | -11 -10 -10 -7 -5 ------- Run | Yrd Mat Sub Rec Fac Traps Triggered 1 | . . . . 1 Indirectly . | . . . . . Trap Hack Attempts . | . . . . . Triggered . | . . . . . Disarmed . | . . . . . Reprogrammed . | . . . . . Reused . | . . . . . Traps Extracted . | . . . . . Installed . | . . . . . Triggered . | . . . . . Machines | -11 -10 -10 -7 -5 ---------- Run | Yrd Mat Sub Rec Fac Machines Disabled 1 | . . . . 1 Max in Single Turn 1 | . . . . 1 Machines Repaired . | . . . . . Machines Dismantled . | . . . . . Machines Sabotaged . | . . . . . Overloaded Fab Kills . | . . . . . Hacking | -11 -10 -10 -7 -5 --------- Run | Yrd Mat Sub Rec Fac Machines Accessed 15 | . 4 . 11 . Terminals 9 | . 4 . 5 . Fabricators . | . . . . . Repair Stations . | . . . . . Recycling Units 6 | . . . 6 . Scanalyzers . | . . . . . Garrison Access . | . . . . . Total Hacks 40 | . 13 . 27 . Successful 16 | . 3 . 13 . Failed 24 | . 10 . 14 . Catastrophic 5 | . 2 . 3 . Database Lockouts . | . . . . . Manual 15 | . 9 . 6 . Terminals 25 | . 13 . 12 . Fabricators . | . . . . . Repair Stations . | . . . . . Recycling Units 15 | . . . 15 . Scanalyzers . | . . . . . Garrison Access . | . . . . . Terminal Hacks 4 | . 1 . 3 . Prototype ID Bank 3 | . 1 . 2 . Recycling Unit Index 1 | . . . 1 . Fabricator Hacks . | . . . . . Repair Station Hacks . | . . . . . Recycling Unit Hacks 10 | . . . 10 . Report Inventory 6 | . . . 6 . Retrieve Components 4 | . . . 4 . Scanalyzer . | . . . . . Garrison Access Hacks . | . . . . . Unauthorized Hacks 2 | . 2 . . . Terminals 2 | . 2 . . . Botnet 1 | . 1 . . . Operators 1 | . 1 . . . Fabricators . | . . . . . Repair Stations . | . . . . . Recycling Units . | . . . . . Scanalyzers . | . . . . . Garrison Access . | . . . . . Data Cores Recovered . | . . . . . Used . | . . . . . Hacking Detections 12 | . 4 . 8 . Full Trace Events 10 | . 4 . 6 . Feedback Events . | . . . . . Feedback Blocked . | . . . . . Robot Schematics Acquired . | . . . . . Robots Built . | . . . . . Authchips . | . . . . . Time . | . . . . . Total Robot Build Rating . | . . . . . Part Schematics Acquired . | . . . . . Parts Built . | . . . . . Authchips . | . . . . . Time . | . . . . . Total Part Build Rating . | . . . . . Parts Repaired . | . . . . . Time . | . . . . . Parts Recycled . | . . . . . Recycled Matter . | . . . . . Retrieved Matter . | . . . . . Retrieved Components 10 | . . . 10 . Parts Scanalyzed . | . . . . . Part Schematics Acquired . | . . . . . Parts Damaged . | . . . . . Bothacking | -11 -10 -10 -7 -5 ------------ Run | Yrd Mat Sub Rec Fac Used RIF Installer . | . . . . . Robots Hacked . | . . . . . Non-combat . | . . . . . Combat . | . . . . . Robot Hacks Applied . | . . . . . Relay Couplers Released . | . . . . . Fabnet Peak Effective % . | . . . . . Robots Rewired . | . . . . . Allies Hacked . | . . . . . Hacks Repelled . | . . . . . Allies | -11 -10 -10 -7 -5 -------- Run | Yrd Mat Sub Rec Fac Total Allies . | . . . . . Largest Group . | . . . . . Highest-Rated Group . | . . . . . Highest-Rated Ally . | . . . . . Total Orders . | . . . . . Ally Attacks . | . . . . . Total Damage . | . . . . . Kills . | . . . . . Allies Corrupted . | . . . . . Allies Melted . | . . . . . Intel | -11 -10 -10 -7 -5 ------- Run | Yrd Mat Sub Rec Fac Robot Analysis Total . | . . . . . Derelict Logs Recovered . | . . . . . Drone Launches . | . . . . . Drone Recoveries . | . . . . . Exploration | -11 -10 -10 -7 -5 ------------- Run | Yrd Mat Sub Rec Fac Turns Passed 1572 | 74 398 66 566 468 Spaces Moved 1014 | 42 210 42 349 371 Core 16 | 2 . . 2 12 Treads 586 | 40 210 42 294 . Legs 270 | . . . 53 217 Wheels . | . . . . . Hover . | . . . . . Flight 142 | . . . . 142 Fastest Speed 37 | 50 160 160 100 37 Average Speed 136 | 154 160 160 157 100 Slowest Speed 250 | 160 160 160 250 250 Overloaded Moves . | . . . . . Propulsion Burnouts . | . . . . . Robots Hopped 3 | . . . . 3 Cave-ins Triggered . | . . . . . Exploration Rate (%) 29 | 3 40 3 84 15 Regions Visited 4 Branch Regions 2 Pre-discovered Areas . | . . . . . Known Exits Taken . | . . . . . Unknown Exits Taken 4 | 1 1 1 1 . Scrap Searched . | . . . . . Spaces Dug 1 | . 1 . . . Terrain Destroyed 16 | . 1 . . 15 Melee 1 | . 1 . . . Projectile . | . . . . . AOE 15 | . . . . 15 Terrain Rammed . | . . . . . Walls Destroyed . | . . . . . Machines Disabled . | . . . . . Actions | -11 -10 -10 -7 -5 --------- Run | Yrd Mat Sub Rec Fac Total 1123 | 48 240 41 368 426 Wait 3 | . 3 . . . Move 1004 | 41 209 41 348 365 Hop 3 | . . . . 3 Pick Up 13 | 1 3 . 3 6 Fast Attach 25 | 6 4 . 5 10 Attach 10 | . . . 1 9 Detach 8 | . 2 . 3 3 Swap 2 | . 1 . 1 . Drop 9 | . 1 . 7 1 Fire 41 | . 16 . . 25 Melee 5 | . 1 . . 4 Ram . | . . . . . Kick . | . . . . . Crush . | . . . . . Escape Stasis . | . . . . . Rewire . | . . . . . Trap . | . . . . . Miscellaneous . | . . . . . Route ------- -11/Scrapyard -10/Materials (discovered 2 exits: [*Mat] / [*Sub]) -10/Subcaves -7/Recycling -5/Factory (discovered 1 exit: [*Fac]) History --------- Turn | Location | Event 18 | -11/Scrapyard | Discovered new exit (range 15) 75 | -11/Scrapyard | Entered Materials 306 | -10/Materials | Build established: Mutant 396 | -10/Materials | Discovered new exit (range 13) 455 | -10/Materials | Discovered new exit (range 8) 473 | -10/Materials | Entered Subcaves 528 | -10/Subcaves | Discovered new exit (range 8) 539 | -10/Subcaves | Entered Recycling 1068 | -7/Recycling | Discovered new exit (range 15) 1105 | -7/Recycling | Entered Factory 1105 | -5/Factory | Evolved 10 slots: Power x1, Propulsion x2, Utility x7 1447 | -5/Factory | System corruption reached 10% 1506 | -5/Factory | Discovered new exit (range 14) 1537 | -5/Factory | Core integrity fell below 50% 1573 | -5/Factory | Self-destructed Last Messages --------------- Lgt. Nuclear Core destroyed. K-01 Serf collects debris. S-27 Virus destroyed. Assembly Bed disabled. Acquired 1 matter. Acquired 7 matter. Acquired Neutrino Core. >BY